[Event "Klatov Bazar Besiny Cup 2018"]
[Site "Klatovy"]
[Date "2018.07.01"]
[Round "2"]
[White "Simet, Martin"]
[Black "Simek, Petr"]
[Result "1/2-1/2"]
[ECO "B34"]
[WhiteElo "2182"]
[BlackElo "2266"]
[Annotator "NA"]
[PlyCount "69"]
[EventDate "2018.07.01"]
[EventType "swiss"]
[EventCountry "CZE"]
[SourceTitle "playchess.com"]
[Source "ChessBase"]
[SourceQuality "1"]
[TimeControl "40/7200:0"]

1. e4 {[%emt 0:00:00]} c5 {[%emt 0:00:00]} 2. Nf3 {[%emt 0:00:00]} Nc6 {[%emt 0:00:00]} 3. d4 {[%emt 0:00:00]} cxd4 {[%emt 0:00:00]} 4. Nxd4 {[%emt 0:00:00]} Nf6 {[%emt 0:03:53]} 5. Nc3 {[%emt 0:00:00]} e5 {[%emt 0:00:00]} 6. Ndb5 {[%emt 0:00:00]} d6 {[%emt 0:00:00]} 7. Bg5 {[%emt 0:00:00]} a6 {[%emt 0:00:00]} 8. Bxf6 {[%emt 0:00:00]} gxf6 {[%emt 0:00:00]} 9. Na3 {[%emt 0:00:00]} f5 {[%emt 0:05:03]} 10. Qh5 {[%emt 0:18:15]} b5 {[%emt 0:12:48]} 11. Naxb5 {[%emt 0:12:06]} Be7 $2 {[%emt 0:15:12]} (11... axb5 $17 12. Bxb5 Bb7) 12. Bc4 {[%emt 0:09:22]} O-O {[%emt 0:00:51]} 13. Na3 {[%emt 0:00:00]} Nd4 {[%emt 0:11:40]} 14. Bd3 {[%emt 0:13:29]} d5 {[%emt 0:17:37]} (14... Bb7 $16 {kämpft weiter.}) 15. Nxd5 {[%emt 0:16:51]} Bxa3 {[%emt 0:01:07]} 16. bxa3 $18 {[%emt 0:00:00]} fxe4 {[%emt 0:10:31]} 17. Qxe5 {[%emt 0:00:22]} exd3 {[%emt 0:01:32]} 18. Ne7+ {[%emt 0:02:12]} Qxe7 {[%emt 0:00:00]} 19. Qxe7 {[%emt 0:00:00]} Nxc2+ {[%emt 0:00:00]} 20. Kd2 {[%emt 0:00:00]} Bf5 {[%emt 0:05:05]} 21. Qf6 {[%emt 0:02:42]} Bg6 {[%emt 0:00:12]} 22. f4 {[%emt 0:01:32]} Nxa1 {[%emt 0:01:10]} 23. Rxa1 {[%emt 0:00:00]} Rfe8 {[%emt 0:01:58]} 24. f5 {[%emt 0:02:17]} Re2+ {[%emt 0:00:00]} 25. Kxd3 {[%emt 0:00:00]} Re6 {[%emt 0:01:04]} 26. Qg5 {[%emt 0:02:35]} h6 {[%emt 0:08:55]} 27. Qg4 {[%emt 0:11:34]} Rd8+ {[%emt 0:00:20]} 28. Kc3 {[%emt 0:00:00]} Rc8+ {[%emt 0:05:04]} 29. Kb3 {[%emt 0:00:00]} h5 {[%emt 0:00:37]} 30. Qxg6+ {[%emt 0:15:39]} Rxg6 {[%emt 0:00:00]} 31. fxg6 {[%emt 0:00:00]} fxg6 {[%emt 0:00:00]} 32. Rd1 {[%emt 0:00:00]} Kg7 {[%emt 0:00:22]} 33. Rd6 {[%emt 0:00:00]} Rb8+ {[%emt 0:00:00]} 34. Kc3 {[%emt 0:00:00]} Rf8 {[%emt 0:00:00]} 35. Rd2 {[%emt 0:00:44]} 1/2-1/2

[Event "Klatov Bazar Besiny Cup 2018"]
[Site "Klatovy"]
[Date "2018.07.01"]
[Round "2"]
[White "Palek, Miroslav"]
[Black "Hausner, Ivan"]
[Result "1/2-1/2"]
[ECO "B51"]
[WhiteElo "2153"]
[BlackElo "2321"]
[Annotator "NA"]
[PlyCount "62"]
[EventDate "2018.07.01"]
[EventType "swiss"]
[EventCountry "CZE"]
[SourceTitle "playchess.com"]
[Source "ChessBase"]
[SourceQuality "1"]
[TimeControl "40/7200:0"]

{[%evp 38,62,-19,-81,-85,-70,32767,-81,-89,-95,-112,-116,-79,-81,-22,-30,-16,-35,-38,-48,11,0,0,0,0,-12,-15]} 1. e4 {[%emt 0:00:00]} c5 {[%emt 0:00:00]} 2. Nf3 {[%emt 0:00:00]} d6 {[%emt 0:00:00]} 3. Bb5+ {[%emt 0:00:09]} Nd7 {[%emt 0:00:00]} 4. c3 {[%emt 0:00:33]} Ngf6 {[%emt 0:00:00]} 5. Qe2 {[%emt 0:00:14]} e5 {[%emt 0:00:00] B51: Sicilian: Moscow Variation (3 Bb5+) without 3...Bd7} (5... a6 6. Ba4 b5 7. Bc2 Bb7 8. d4 e6 9. O-O Be7 10. Nbd2 O-O 11. e5 Nd5 12. Ne4 Qc7 13. exd6 Bxd6 14. Nxd6 Qxd6 15. dxc5 Qxc5 {½-½ (58) Kovalev,V (2648)-Grandelius,N (2652) Sharjah 2018}) 6. O-O {[%emt 0:01:45]} Be7 {[%emt 0:00:00]} 7. Rd1 {[%emt 0:00:00]} O-O {[%emt 0:00:00]} 8. d4 {[%emt 0:00:00]} Qc7 {[%emt 0:00:00]} 9. Bg5 $146 {[%emt 0:04:24]} ({Predecessor:} 9. dxe5 dxe5 10. Bg5 Nb8 11. c4 a6 12. Ba4 Bd7 13. Bxd7 Nbxd7 {½-½ (33) Haug,J (2307)-Haubro,M (2361) Oslo 2016}) 9... h6 {[%emt 0:00:00]} 10. Bh4 {[%emt 0:00:00]} a6 {[%emt 0:00:00]} 11. Ba4 {[%emt 0:02:19]} Re8 {[%emt 0:00:04]} 12. dxc5 {[%emt 0:00:42]} dxc5 {[%emt 0:00:00]} 13. Nbd2 {[%emt 0:00:23]} b5 {[%emt 0:00:00]} 14. Bc2 {[%emt 0:00:00]} Bb7 {[%emt 0:00:16]} 15. h3 {[%emt 0:22:33]} Bf8 {[%emt 0:07:26]} 16. Nh2 {[%emt 0:04:49]} g6 {[%emt 0:00:06]} 17. g4 {[%emt 0:00:53]} Bg7 {[%emt 0:00:00]} 18. Nhf1 {[%emt 0:00:00]} c4 {[%emt 0:00:17]} 19. Ne3 {[%emt 0:01:28]} Nc5 {[%emt 0:06:37]} 20. f3 {[%emt 0:00:34]} Ne6 {[%emt 0:03:12]} 21. Ng2 {[%emt 0:02:18]} Nh7 {[%emt 0:00:49]} 22. Rac1 {[%emt 0:10:11]} Nhg5 {[%emt 0:02:51]} 23. Kh2 {[%emt 0:00:15]} Rad8 {[%emt 0:00:23]} 24. Nf1 {[%emt 0:00:33]} Bf6 {[%emt 0:00:09]} 25. Bf2 {[%emt 0:02:22] [#]} Be7 {[%emt 0:03:11]} (25... Nd4 $1 $17 {[%mdl 512]} 26. cxd4 exd4+ 27. Bg3 d3 28. Bxd3 cxd3) 26. h4 {[%emt 0:02:38]} Nh7 {[%emt 0:00:00]} 27. Rxd8 {[%emt 0:00:00]} Rxd8 {[%emt 0:00:00]} 28. Rd1 {[%emt 0:00:00]} Bc5 {[%emt 0:00:53]} 29. Rxd8+ {[%emt 0:01:58]} Qxd8 {[%emt 0:00:00]} 30. Bxc5 {[%emt 0:02:37]} Nxc5 {[%emt 0:00:00]} 31. Qe3 {[%emt 0:00:00]} Qf8 $11 {[%emt 0:00:00]} 1/2-1/2

[Event "Klatov Bazar Besiny Cup 2018"]
[Site "Klatovy"]
[Date "2018.07.02"]
[Round "3"]
[White "Xu, XianLiang"]
[Black "Formanek, Martin"]
[Result "1-0"]
[ECO "B22"]
[WhiteElo "2430"]
[BlackElo "2267"]
[Annotator "NA"]
[PlyCount "65"]
[EventDate "2018.07.01"]
[EventType "swiss"]
[EventCountry "CZE"]
[SourceTitle "playchess.com"]
[Source "ChessBase"]
[SourceQuality "1"]
[TimeControl "40/7200:0"]

1. e4 {[%emt 0:00:00]} c5 {[%emt 0:03:52]} 2. c3 {[%emt 0:00:00]} Nf6 {[%emt 0:00:00]} 3. e5 {[%emt 0:00:00]} Nd5 {[%emt 0:00:00]} 4. d4 {[%emt 0:00:00]} cxd4 {[%emt 0:00:00]} 5. Nf3 {[%emt 0:00:00]} e6 {[%emt 0:00:00]} 6. cxd4 {[%emt 0:00:00]} b6 {[%emt 0:00:00]} 7. Bd3 {[%emt 0:00:00]} Ba6 {[%emt 0:00:00]} 8. O-O {[%emt 0:00:00]} Bxd3 {[%emt 0:00:00]} 9. Qxd3 {[%emt 0:00:00]} Nc6 {[%emt 0:00:35]} 10. Nc3 {[%emt 0:00:00]} Ncb4 {[%emt 0:12:03]} 11. Qe2 {[%emt 0:04:16]} Be7 {[%emt 0:22:40]} 12. a3 {[%emt 0:05:39]} Nxc3 {[%emt 0:01:04]} 13. bxc3 {[%emt 0:00:00]} Nc6 {[%emt 0:00:00]} 14. d5 {[%emt 0:14:40]} exd5 {[%emt 0:00:55]} 15. Rd1 {[%emt 0:01:23]} O-O {[%emt 0:02:48]} 16. Rxd5 {[%emt 0:03:28]} Qc7 {[%emt 0:04:16]} 17. Qd3 {[%emt 0:03:11]} Rad8 {[%emt 0:03:21]} 18. Ng5 {[%emt 0:06:35]} Bxg5 {[%emt 0:03:47]} 19. Bxg5 {[%emt 0:00:44]} Rde8 {[%emt 0:00:33]} 20. f4 {[%emt 0:01:46]} Nb8 {[%emt 0:02:15]} 21. Qg3 {[%emt 0:21:15]} Kh8 {[%emt 0:01:41]} 22. f5 {[%emt 0:01:21]} f6 {[%emt 0:02:49]} 23. exf6 {[%emt 0:01:57]} Qxg3 {[%emt 0:00:00]} 24. fxg7+ {[%emt 0:00:00]} Kxg7 {[%emt 0:00:00]} 25. hxg3 {[%emt 0:00:00]} Rf7 {[%emt 0:01:15]} 26. Rf1 {[%emt 0:04:54]} Nc6 {[%emt 0:00:36]} 27. g4 {[%emt 0:08:01]} Re4 {[%emt 0:09:12]} 28. Rf4 {[%emt 0:01:08]} Re3 {[%emt 0:01:56]} 29. Rc4 {[%emt 0:10:18]} Re5 {[%emt 0:04:50]} 30. Rd6 {[%emt 0:08:09]} h5 {[%emt 0:04:04]} 31. Rg6+ {[%emt 0:00:27]} Kf8 {[%emt 0:00:01]} 32. Bf4 {[%emt 0:07:44]} hxg4 {[%emt 0:02:02]} 33. Rcxc6 {[%emt 0:03:14]} 1-0

[Event "Klatov Bazar Besiny Cup 2018"]
[Site "Klatovy"]
[Date "2018.07.02"]
[Round "3"]
[White "Pulpan, Jakub"]
[Black "Jedlicka, Ales"]
[Result "1-0"]
[ECO "B92"]
[WhiteElo "2386"]
[BlackElo "2221"]
[Annotator "ChessBase"]
[PlyCount "99"]
[EventDate "2018.07.01"]
[EventType "swiss"]
[EventCountry "CZE"]
[SourceTitle "playchess.com"]
[Source "ChessBase"]
[SourceQuality "1"]
[TimeControl "40/7200:0"]

1. e4 {[%emt 0:00:00]} c5 {[%emt 0:00:00]} 2. Nf3 {[%emt 0:00:00]} d6 {[%emt 0:00:00]} 3. d4 {[%emt 0:00:00]} cxd4 {[%emt 0:00:00]} 4. Nxd4 {[%emt 0:00:00]} Nf6 {[%emt 0:00:00]} 5. Nc3 {[%emt 0:00:00]} a6 {[%emt 0:00:00]} 6. Be2 {[%emt 0:00:00]} e5 {[%emt 0:00:00]} 7. Nb3 {[%emt 0:00:00]} Be7 {[%emt 0:00:00]} 8. O-O {[%emt 0:00:00]} O-O {[%emt 0:00:00]} 9. Qd3 {[%emt 0:00:00]} Be6 {[%emt 0:00:00]} 10. Bd2 {[%emt 0:00:00]} Nbd7 {[%emt 0:00:00]} 11. Nd5 {[%emt 0:00:00]} Bxd5 {[%emt 0:00:00]} 12. exd5 {[%emt 0:00:00]} a5 {[%emt 0:00:37]} 13. a4 {[%emt 0:00:44]} Nc5 {[%emt 0:00:23]} 14. Nxc5 {[%emt 0:00:00]} dxc5 {[%emt 0:00:00]} 15. c4 {[%emt 0:00:53]} e4 {[%emt 0:01:01]} 16. Qh3 {[%emt 0:00:15]} Bd6 {[%emt 0:03:48]} 17. f4 {[%emt 0:11:13]} Re8 {[%emt 0:04:07]} 18. Bc3 {[%emt 0:01:41]} Ra6 {[%emt 0:11:32]} 19. Rae1 {[%emt 0:06:53]} Qd7 {[%emt 0:02:52]} 20. g4 {[%emt 0:14:23]} Bc7 {[%emt 0:02:35]} 21. Qg2 {[%emt 0:06:33]} e3 {[%emt 0:07:28]} 22. g5 {[%emt 0:10:14]} Ne4 {[%emt 0:03:02]} 23. Bg4 {[%emt 0:07:17]} Qxa4 {[%emt 0:12:59]} 24. Rxe3 {[%emt 0:04:54]} Nd6 {[%emt 0:07:59]} 25. Rxe8+ {[%emt 0:01:50]} Qxe8 {[%emt 0:00:25]} 26. Re1 {[%emt 0:00:00]} Qd8 {[%emt 0:00:33]} 27. Qe2 {[%emt 0:02:47]} Ra8 {[%emt 0:01:08]} 28. h4 {[%emt 0:06:44]} a4 {[%emt 0:05:54]} 29. h5 {[%emt 0:08:21]} Ba5 {[%emt 0:05:08]} 30. Bxa5 {[%emt 0:00:58]} Rxa5 {[%emt 0:01:27]} 31. h6 {[%emt 0:02:18]} gxh6 {[%emt 0:18:02]} 32. gxh6 {[%emt 0:01:36]} Ra8 {[%emt 0:00:00]} 33. Qe5 {[%emt 0:07:38]} f6 {[%emt 0:03:11]} 34. Qe6+ {[%emt 0:06:52]} Kh8 {[%emt 0:03:28]} 35. Bh5 {[%emt 0:05:28]} Qf8 {[%emt 0:00:29]} 36. Re2 {[%emt 0:01:20]} a3 {[%emt 0:05:54]} 37. bxa3 {[%emt 0:00:00]} Nxc4 {[%emt 0:05:11]} 38. Qd7 {[%emt 0:02:32]} Rd8 {[%emt 0:03:41]} 39. Qc7 {[%emt 0:00:54]} Rc8 {[%emt 0:02:00]} 40. Qxb7 {[%emt 0:01:06]} Nd6 {[%emt 0:00:00]} 41. Qd7 {[%emt 2:01:23]} Rb8 {[%emt 2:01:03]} 42. Re6 {[%emt 0:01:17]} Nf5 {[%emt 0:00:14]} 43. Re8 {[%emt 0:00:28]} Rxe8 {[%emt 0:00:00]} 44. Qxe8 {[%emt 0:00:00]} Qxe8 {[%emt 0:00:00]} 45. Bxe8 {[%emt 0:00:00]} Kg8 {[%emt 0:00:13]} 46. Bd7 {[%emt 0:00:00]} Nd6 {[%emt 0:00:15]} 47. a4 {[%emt 0:00:00]} Nc4 {[%emt 0:00:50]} 48. Bb5 {[%emt 0:00:00]} Nd6 {[%emt 0:01:01]} 49. Bd3 {[%emt 0:00:00]} c4 {[%emt 0:00:05]} 50. Bc2 {[%emt 0:00:00]} 1-0

[Event "Klatov Bazar Besiny Cup 2018"]
[Site "Klatovy"]
[Date "2018.07.02"]
[Round "3"]
[White "Simek, Petr"]
[Black "Kozak, Milos"]
[Result "1-0"]
[ECO "A62"]
[WhiteElo "2354"]
[BlackElo "2156"]
[Annotator "NA"]
[PlyCount "69"]
[EventDate "2018.07.01"]
[EventType "swiss"]
[EventCountry "CZE"]
[SourceTitle "playchess.com"]
[Source "ChessBase"]
[SourceQuality "1"]
[TimeControl "40/7200:0"]

1. d4 {[%emt 0:00:00]} Nf6 {[%emt 0:01:42]} 2. c4 {[%emt 0:00:00]} e6 {[%emt 0:00:25]} 3. g3 {[%emt 0:00:00]} c5 {[%emt 0:00:00]} 4. d5 {[%emt 0:00:00]} exd5 {[%emt 0:00:00]} 5. cxd5 {[%emt 0:00:00]} d6 {[%emt 0:00:00]} 6. Nc3 {[%emt 0:00:00]} g6 {[%emt 0:00:00]} 7. Bg2 {[%emt 0:00:00]} Bg7 {[%emt 0:00:00]} 8. Nf3 {[%emt 0:00:00]} O-O {[%emt 0:00:00]} 9. O-O {[%emt 0:00:00]} Re8 {[%emt 0:00:00]} 10. a4 {[%emt 0:00:46]} a6 {[%emt 0:03:27]} 11. Bf4 {[%emt 0:08:24]} Qc7 {[%emt 0:07:06]} 12. Rc1 {[%emt 0:03:40]} Ne4 {[%emt 0:06:40]} 13. Nxe4 {[%emt 0:09:58]} Rxe4 {[%emt 0:00:00]} 14. Nd2 {[%emt 0:00:00]} Rd4 {[%emt 0:19:08]} 15. e3 {[%emt 0:03:38]} Rb4 {[%emt 0:03:12]} 16. b3 {[%emt 0:13:41]} Bf8 {[%emt 0:06:45]} 17. Rc4 {[%emt 0:22:42]} Rxc4 {[%emt 0:02:47]} 18. bxc4 {[%emt 0:00:02]} Nd7 {[%emt 0:00:00]} 19. Qb3 {[%emt 0:02:20]} Bg7 {[%emt 0:03:24]} 20. Rb1 {[%emt 0:00:41]} h6 {[%emt 0:09:22]} 21. h4 {[%emt 0:00:31]} Rb8 {[%emt 0:07:20]} 22. Ne4 {[%emt 0:02:45]} Bf8 {[%emt 0:08:34]} 23. g4 {[%emt 0:02:44]} b6 {[%emt 0:07:01]} 24. g5 {[%emt 0:04:17]} hxg5 {[%emt 0:00:40]} 25. hxg5 {[%emt 0:00:26]} Be7 {[%emt 0:00:34]} 26. Qc3 {[%emt 0:06:45]} Ne5 {[%emt 0:02:28]} 27. Rd1 {[%emt 0:24:20]} Bg4 {[%emt 0:01:04]} 28. Bxe5 {[%emt 0:00:00]} Bxd1 {[%emt 0:00:00]} 29. Bh8 {[%emt 0:00:00]} f6 {[%emt 0:01:09]} 30. Bxf6 {[%emt 0:00:00]} Rf8 {[%emt 0:03:10]} 31. Bh3 {[%emt 0:00:09]} Kf7 {[%emt 0:01:22]} 32. Bg7 {[%emt 0:01:05]} Rb8 {[%emt 0:06:22]} 33. Be6+ {[%emt 0:01:33]} Ke8 {[%emt 0:00:00]} 34. Bh6 {[%emt 0:00:00]} Bf8 {[%emt 0:00:49]} 35. Bxf8 1-0

[Event "Klatov Bazar Besiny Cup 2018"]
[Site "Klatovy"]
[Date "2018.07.02"]
[Round "3"]
[White "Hausner, Ivan"]
[Black "Chmel, Kristian"]
[Result "1-0"]
[ECO "D92"]
[WhiteElo "2321"]
[BlackElo "2121"]
[Annotator "NA"]
[PlyCount "53"]
[EventDate "2018.07.01"]
[EventType "swiss"]
[EventCountry "CZE"]
[SourceTitle "playchess.com"]
[Source "ChessBase"]
[SourceQuality "1"]
[TimeControl "40/7200:0"]

1. d4 {[%emt 0:00:00]} Nf6 {[%emt 0:00:00]} 2. c4 {[%emt 0:00:00]} g6 {[%emt 0:00:00]} 3. Nc3 {[%emt 0:00:00]} d5 {[%emt 0:00:00]} 4. Nf3 {[%emt 0:00:00]} Bg7 {[%emt 0:00:00]} 5. Bf4 {[%emt 0:00:00]} O-O {[%emt 0:01:25]} 6. Rc1 {[%emt 0:00:00]} dxc4 {[%emt 0:00:24]} 7. e4 {[%emt 0:00:00]} Nh5 {[%emt 0:03:26]} 8. Be3 {[%emt 0:00:00]} b6 {[%emt 0:31:41]} 9. Bxc4 {[%emt 0:00:00]} Bb7 {[%emt 0:02:19]} 10. O-O {[%emt 0:00:00]} Nd7 {[%emt 0:00:31]} 11. Qb3 {[%emt 0:02:14]} e6 {[%emt 0:17:21]} 12. Rfd1 {[%emt 0:00:14]} Ndf6 {[%emt 0:11:55]} 13. d5 {[%emt 0:05:42]} exd5 {[%emt 0:00:35]} 14. Nxd5 {[%emt 0:00:00]} Nxd5 {[%emt 0:05:25]} 15. Bxd5 {[%emt 0:00:00]} Bxd5 {[%emt 0:00:49]} 16. exd5 {[%emt 0:00:00]} Rc8 {[%emt 0:08:29]} 17. h3 {[%emt 0:01:17]} Re8 {[%emt 0:08:23]} 18. Nd4 {[%emt 0:00:41]} a5 {[%emt 0:01:38]} 19. Nb5 {[%emt 0:01:13]} Re4 {[%emt 0:06:37]} 20. d6 {[%emt 0:01:45]} c5 {[%emt 0:05:59]} 21. d7 {[%emt 0:00:05]} Rb8 {[%emt 0:02:29]} 22. Na7 {[%emt 0:00:28]} Re6 {[%emt 0:02:14]} 23. Bxc5 {[%emt 0:02:46]} Nf4 {[%emt 0:02:14]} 24. Kh1 {[%emt 0:00:56]} Qg5 {[%emt 0:02:50]} 25. Qg3 {[%emt 0:00:00]} Qf6 {[%emt 0:00:38]} 26. Bd4 {[%emt 0:00:10]} Qf5 {[%emt 0:01:48]} 27. Rc8+ {[%emt 0:00:55]} 1-0

[Event "Klatov Bazar Besiny Cup 2018"]
[Site "Klatovy"]
[Date "2018.07.02"]
[Round "3"]
[White "Mejzlik, Ondrej"]
[Black "Neuman, Petr"]
[Result "1/2-1/2"]
[ECO "D45"]
[WhiteElo "2287"]
[BlackElo "2432"]
[Annotator "NA"]
[PlyCount "58"]
[EventDate "2018.07.01"]
[EventType "swiss"]
[EventCountry "CZE"]
[SourceTitle "playchess.com"]
[Source "ChessBase"]
[SourceQuality "1"]
[TimeControl "40/7200:0"]

1. c4 {[%emt 0:00:00]} Nf6 {[%emt 0:00:00]} 2. Nc3 {[%emt 0:00:00]} e6 {[%emt 0:00:00]} 3. Nf3 {[%emt 0:02:52]} d5 {[%emt 0:00:32]} 4. d4 {[%emt 0:00:00]} c6 {[%emt 0:00:17]} 5. e3 {[%emt 0:00:29]} Nbd7 {[%emt 0:00:00]} 6. a3 {[%emt 0:04:30]} Bd6 {[%emt 0:03:21]} 7. Be2 {[%emt 0:07:15]} O-O {[%emt 0:01:34]} 8. O-O {[%emt 0:02:19]} b6 {[%emt 0:06:43]} 9. b4 {[%emt 0:06:46]} dxc4 {[%emt 0:20:52]} 10. Bxc4 {[%emt 0:05:10]} Bb7 {[%emt 0:00:37]} 11. e4 {[%emt 0:07:54]} e5 {[%emt 0:02:00]} 12. Bg5 {[%emt 0:01:48]} h6 {[%emt 0:01:01]} 13. Bh4 {[%emt 0:08:57]} b5 {[%emt 0:01:15]} 14. Bb3 {[%emt 0:01:56]} a5 {[%emt 0:00:00]} 15. bxa5 {[%emt 0:04:58]} Rxa5 {[%emt 0:07:36]} 16. Bg3 {[%emt 0:09:29]} Qc7 {[%emt 0:04:27]} 17. dxe5 {[%emt 0:06:40]} Nxe5 {[%emt 0:02:27]} 18. Nd4 {[%emt 0:00:38]} Rd8 {[%emt 0:04:35]} 19. Nf5 {[%emt 0:01:27]} Be7 {[%emt 0:06:17]} 20. Qc1 {[%emt 0:05:18]} Bf8 {[%emt 0:14:11]} 21. Qf4 {[%emt 0:02:51]} b4 {[%emt 0:04:17]} 22. axb4 {[%emt 0:01:47]} Nh5 {[%emt 0:00:00]} 23. Qh4 {[%emt 0:21:14]} Rxa1 {[%emt 0:01:02]} 24. Rxa1 {[%emt 0:03:47]} Nxg3 {[%emt 0:00:00]} 25. hxg3 {[%emt 0:00:00]} Bxb4 {[%emt 0:03:24]} 26. Nd1 {[%emt 0:02:32]} Bc8 {[%emt 0:06:57]} 27. Nde3 {[%emt 0:00:46]} Re8 {[%emt 0:00:29]} 28. Ng4 {[%emt 0:01:31]} Bxf5 {[%emt 0:01:41]} 29. exf5 {[%emt 0:00:00]} Nxg4 {[%emt 0:01:08]} 1/2-1/2

[Event "Klatov Bazar Besiny Cup 2018"]
[Site "Klatovy"]
[Date "2018.07.02"]
[Round "3"]
[White "Dvorak, Jan"]
[Black "Straka, Vojtech"]
[Result "0-1"]
[ECO "A37"]
[WhiteElo "2210"]
[BlackElo "2379"]
[Annotator "NA"]
[PlyCount "80"]
[EventDate "2018.07.01"]
[EventType "swiss"]
[EventCountry "CZE"]
[SourceTitle "playchess.com"]
[Source "ChessBase"]
[SourceQuality "1"]
[TimeControl "40/7200:0"]

1. c4 {[%emt 0:00:41]} c5 {[%emt 0:00:00]} 2. g3 {[%emt 0:00:00]} Nc6 {[%emt 0:00:00]} 3. Bg2 {[%emt 0:00:00]} g6 {[%emt 0:00:00]} 4. Nc3 {[%emt 0:00:00]} Bg7 {[%emt 0:00:00]} 5. Nf3 {[%emt 0:00:00]} e6 {[%emt 0:00:00]} 6. d3 {[%emt 0:00:00]} Nge7 {[%emt 0:00:00]} 7. Bg5 {[%emt 0:00:06]} h6 {[%emt 0:04:16]} 8. Bd2 {[%emt 0:02:51]} O-O {[%emt 0:01:23]} 9. O-O {[%emt 0:00:28]} Rb8 {[%emt 0:34:07]} 10. Rb1 {[%emt 0:13:17]} a6 {[%emt 0:01:14]} 11. a3 {[%emt 0:16:01]} b5 {[%emt 0:00:56]} 12. cxb5 {[%emt 0:05:57]} axb5 {[%emt 0:00:00]} 13. b4 {[%emt 0:00:00]} cxb4 {[%emt 0:00:00]} 14. axb4 {[%emt 0:00:00]} d5 {[%emt 0:00:00]} 15. Qc1 {[%emt 0:05:09]} Kh7 {[%emt 0:02:38]} 16. Rd1 {[%emt 0:06:38]} Qb6 {[%emt 0:03:54]} 17. e3 {[%emt 0:18:10]} e5 {[%emt 0:10:30]} 18. Ne2 {[%emt 0:06:55]} Bf5 {[%emt 0:02:28]} 19. Bc3 {[%emt 0:00:27]} Rfd8 {[%emt 0:03:56]} 20. Ba1 {[%emt 0:02:07]} Rbc8 {[%emt 0:00:39]} 21. Qd2 {[%emt 0:03:52]} Ra8 {[%emt 0:10:49]} 22. Nh4 {[%emt 0:06:04]} Be6 {[%emt 0:03:47]} 23. f4 {[%emt 0:02:59]} f6 {[%emt 0:18:47]} 24. d4 {[%emt 0:07:48]} e4 {[%emt 0:00:49]} 25. Bf1 {[%emt 0:00:00]} g5 {[%emt 0:00:28]} 26. Ng2 {[%emt 0:00:00]} Nc8 {[%emt 0:01:11]} 27. Nc1 {[%emt 0:01:59]} Bg4 {[%emt 0:02:22]} 28. Be2 {[%emt 0:00:41]} Bxe2 {[%emt 0:00:00]} 29. Qxe2 {[%emt 0:00:00]} Nd6 {[%emt 0:01:07]} 30. Bc3 {[%emt 0:01:02]} Qb7 {[%emt 0:05:03]} 31. Nb3 {[%emt 0:01:18]} Qd7 {[%emt 0:00:00]} 32. Qh5 {[%emt 0:01:34]} Qe8 {[%emt 0:00:00]} 33. Qe2 {[%emt 0:02:06]} Qd7 {[%emt 0:02:22]} 34. Qh5 {[%emt 0:00:04]} Ra2 {[%emt 0:00:51]} 35. Rd2 {[%emt 0:02:26]} Rda8 {[%emt 0:00:39]} 36. Nc5 {[%emt 0:02:48]} Qe8 {[%emt 0:00:22]} 37. Qe2 {[%emt 0:00:00]} Rxd2 {[%emt 0:00:00]} 38. Bxd2 {[%emt 0:01:00]} Ra2 {[%emt 0:00:00]} 39. Qd1 {[%emt 0:00:00]} Nc4 {[%emt 0:00:00]} 40. Bc3 {[%emt 0:00:00]} Rxg2+ {[%emt 0:00:00]} 0-1

[Event "Klatov Bazar Besiny Cup 2018"]
[Site "Klatovy"]
[Date "2018.07.02"]
[Round "3"]
[White "Dolansky, Lukas"]
[Black "Bures, Jaroslav"]
[Result "0-1"]
[ECO "A10"]
[WhiteElo "2184"]
[BlackElo "2406"]
[Annotator "NA"]
[PlyCount "52"]
[EventDate "2018.07.01"]
[EventType "swiss"]
[EventCountry "CZE"]
[SourceTitle "playchess.com"]
[Source "ChessBase"]
[SourceQuality "1"]
[TimeControl "40/7200:0"]

1. c4 {[%emt 0:00:00]} g6 {[%emt 0:00:15]} 2. g3 {[%emt 0:00:03]} Bg7 {[%emt 0:00:00]} 3. Bg2 {[%emt 0:00:00]} e5 {[%emt 0:00:00]} 4. e3 {[%emt 0:00:35]} f5 {[%emt 0:00:00]} 5. Ne2 {[%emt 0:00:00]} Nf6 {[%emt 0:00:00]} 6. Nbc3 {[%emt 0:00:00]} O-O {[%emt 0:01:59]} 7. O-O {[%emt 0:00:00]} c6 {[%emt 0:00:33]} 8. d4 {[%emt 0:09:09]} d6 {[%emt 0:00:00]} 9. dxe5 {[%emt 0:14:28]} dxe5 {[%emt 0:00:00]} 10. e4 {[%emt 0:00:00]} Na6 {[%emt 0:04:17]} 11. Be3 {[%emt 0:13:04]} Qe7 {[%emt 0:00:00]} 12. Qa4 {[%emt 0:07:19]} Ng4 {[%emt 0:00:00]} 13. Bd2 {[%emt 0:00:21]} f4 {[%emt 0:00:59]} 14. gxf4 {[%emt 0:03:42]} exf4 {[%emt 0:34:22]} 15. Bxf4 {[%emt 0:03:16]} Rxf4 {[%emt 0:00:00]} 16. Nxf4 {[%emt 0:00:10]} Qh4 {[%emt 0:00:00]} 17. h3 {[%emt 0:00:26]} Ne5 {[%emt 0:01:54]} 18. Nfe2 {[%emt 0:07:34]} Bxh3 {[%emt 0:00:00]} 19. f4 {[%emt 0:37:49]} Qg4 {[%emt 0:17:10]} 20. Rf2 {[%emt 0:00:00]} Nd3 {[%emt 0:00:00]} 21. Raf1 {[%emt 0:00:00]} Bf8 {[%emt 0:00:00]} 22. c5 {[%emt 0:12:51]} Bxc5 {[%emt 0:00:14]} 23. Nd4 {[%emt 0:00:00]} Nxf2 {[%emt 0:00:19]} 24. Rxf2 {[%emt 0:00:00]} Rd8 {[%emt 0:04:41]} 25. Nce2 {[%emt 0:00:00]} Bxg2 {[%emt 0:00:20]} 26. Rxg2 {[%emt 0:00:00]} Qd7 {[%emt 0:00:35]} 0-1